[Event "Titled Tuesday Blitz February 22 Early 2022"]
[White "Fecker, Noah"]
[Black "Galchenko, Matvey"]
[WhiteFideId "1334263"]
[BlackFideId "24175480"]
[WhiteElo "2312"]
[BlackElo "2453"]
[Result "0-1"]
[Round "02"]
[TimeControl "180+1"]
[Date "2022.02.22"]
[WhiteClock "0:00:40"]
[BlackClock "0:00:46"]

1. e4 {[%clk 0:02:57]}  e6 {[%clk 0:03:00]} 2. d4 {[%clk 0:02:57]}  d5 {[%clk 0:03:01]} 3. Nd2 {[%clk 0:02:57]}  a6 {[%clk 0:03:01]} 4. Ngf3 {[%clk 0:02:56]}  Nf6 {[%clk 0:03:00]} 5. e5 {[%clk 0:02:57]}  Nfd7 {[%clk 0:03:01]} 6. Bd3 {[%clk 0:02:57]}  c5 {[%clk 0:03:01]} 7. c3 {[%clk 0:02:58]}  Nc6 {[%clk 0:03:02]} 8. O-O {[%clk 0:02:53]}  g5 {[%clk 0:03:02]} 9. Nb1 {[%clk 0:02:50]}  g4 {[%clk 0:03:01]} 10. Ne1 {[%clk 0:02:50]}  cxd4 {[%clk 0:03:01]} 11. cxd4 {[%clk 0:02:51]}  Nxd4 {[%clk 0:03:02]} 12. Qxg4 {[%clk 0:02:50]}  Nc6 {[%clk 0:03:01]} 13. f4 {[%clk 0:02:48]}  h5 {[%clk 0:02:58]} 14. Qh3 {[%clk 0:02:45]}  Qb6+ {[%clk 0:02:51]} 15. Kh1 {[%clk 0:02:46]}  Nc5 {[%clk 0:02:51]} 16. Nc3 {[%clk 0:02:37]}  Bd7 {[%clk 0:02:47]} 17. Bc2 {[%clk 0:02:32]}  Rc8 {[%clk 0:02:40]} 18. a3 {[%clk 0:02:31]}  Nb3 {[%clk 0:02:22]} 19. Nxd5 {[%clk 0:02:07]}  exd5 {[%clk 0:02:03]} 20. Qxb3 {[%clk 0:02:05]}  Qxb3 {[%clk 0:01:36]} 21. Bxb3 {[%clk 0:02:06]}  Nd4 {[%clk 0:01:37]} 22. Bd1 {[%clk 0:02:01]}  h4 {[%clk 0:01:29]} 23. Be3 {[%clk 0:01:53]}  Nf5 {[%clk 0:01:28]} 24. Bf2 {[%clk 0:01:48]}  Bb5 {[%clk 0:01:26]} 25. Rg1 {[%clk 0:01:43]}  Bc5 {[%clk 0:01:12]} 26. Rc1 {[%clk 0:01:12]}  Ng3+ {[%clk 0:01:01]} 27. Bxg3 {[%clk 0:01:11]}  hxg3 {[%clk 0:01:02]} 28. Nf3 {[%clk 0:01:11]}  Rc6 {[%clk 0:00:53]} 29. Re1 {[%clk 0:00:57]}  Bf2 {[%clk 0:00:46]} 30. Rxc6 {[%clk 0:00:50]}  bxc6 {[%clk 0:00:47]} 31. Re2 {[%clk 0:00:45]}  Bxe2 {[%clk 0:00:46]} 32. Bxe2 {[%clk 0:00:46]}  gxh2 {[%clk 0:00:47]} 33. Bxa6 {[%clk 0:00:45]}  Bg3 {[%clk 0:00:47]} 34. Bd3 {[%clk 0:00:43]}  Bxf4 {[%clk 0:00:46]} 35. a4 {[%clk 0:00:40]}  Kd7 {[%clk 0:00:46]} 36. a5 {[%clk 0:00:40]}  c5 {[%clk 0:00:46]} 0-1


[Site "https://www.chess.com"]

[Event "Titled Tuesday Blitz February 22 Early 2022"]
[White "Fedoseev, Vladimir"]
[Black "Cherniaiev, Tykhon"]
[WhiteFideId "24130737"]
[BlackFideId "14182360"]
[WhiteElo "2726"]
[BlackElo "2289"]
[Result "1/2-1/2"]
[Round "02"]
[TimeControl "180+1"]
[Date "2022.02.22"]
[WhiteClock "0:00:19"]
[BlackClock "0:00:11"]

1. e4 {[%clk 0:02:24]}  c5 {[%clk 0:02:48]} 2. Nf3 {[%clk 0:02:21]}  e6 {[%clk 0:02:47]} 3. d4 {[%clk 0:02:21]}  cxd4 {[%clk 0:02:48]} 4. Nxd4 {[%clk 0:02:22]}  a6 {[%clk 0:02:48]} 5. c4 {[%clk 0:02:20]}  Qc7 {[%clk 0:02:48]} 6. Nc3 {[%clk 0:02:20]}  Nf6 {[%clk 0:02:49]} 7. a3 {[%clk 0:02:18]}  Nc6 {[%clk 0:02:49]} 8. Be3 {[%clk 0:02:18]}  Be7 {[%clk 0:02:48]} 9. Be2 {[%clk 0:02:17]}  O-O {[%clk 0:02:49]} 10. Rc1 {[%clk 0:02:14]}  d6 {[%clk 0:02:48]} 11. O-O {[%clk 0:01:57]}  Bd7 {[%clk 0:02:47]} 12. Nd5 {[%clk 0:01:46]}  exd5 {[%clk 0:02:38]} 13. cxd5 {[%clk 0:01:47]}  Rfe8 {[%clk 0:02:22]} 14. f3 {[%clk 0:01:34]}  Bf8 {[%clk 0:02:12]} 15. Bf2 {[%clk 0:01:29]}  g6 {[%clk 0:01:37]} 16. b4 {[%clk 0:01:27]}  Bg7 {[%clk 0:01:35]} 17. dxc6 {[%clk 0:01:27]}  bxc6 {[%clk 0:01:34]} 18. Nb3 {[%clk 0:01:27]}  Nh5 {[%clk 0:01:32]} 19. Qd2 {[%clk 0:01:18]}  d5 {[%clk 0:01:19]} 20. exd5 {[%clk 0:01:08]}  Nf4 {[%clk 0:01:19]} 21. Bd1 {[%clk 0:00:47]}  Bh6 {[%clk 0:00:58]} 22. Kh1 {[%clk 0:00:45]}  Nh3 {[%clk 0:00:53]} 23. Qxh6 {[%clk 0:00:38]}  Nxf2+ {[%clk 0:00:53]} 24. Kg1 {[%clk 0:00:39]}  Nd3 {[%clk 0:00:53]} 25. Rc3 {[%clk 0:00:36]}  Qb6+ {[%clk 0:00:38]} 26. Nc5 {[%clk 0:00:36]}  Nxc5 {[%clk 0:00:37]} 27. Rxc5 {[%clk 0:00:24]}  cxd5 {[%clk 0:00:35]} 28. Qd2 {[%clk 0:00:24]}  Bb5 {[%clk 0:00:30]} 29. Rf2 {[%clk 0:00:23]}  Rac8 {[%clk 0:00:27]} 30. Rxd5 {[%clk 0:00:20]}  Rc1 {[%clk 0:00:17]} 31. h4 {[%clk 0:00:20]}  Qc7 {[%clk 0:00:15]} 32. Rd4 {[%clk 0:00:17]}  Ba4 {[%clk 0:00:06]} 33. Re2 {[%clk 0:00:14]}  Rxd1+ {[%clk 0:00:02]} 34. Qxd1 {[%clk 0:00:13]}  Bxd1 {[%clk 0:00:03]} 35. Rxe8+ {[%clk 0:00:14]}  Kg7 {[%clk 0:00:03]} 36. Rxd1 {[%clk 0:00:14]}  Qb6+ {[%clk 0:00:02]} 37. Kf1 {[%clk 0:00:14]}  Qb5+ {[%clk 0:00:02]} 38. Re2 {[%clk 0:00:15]}  Qh5 {[%clk 0:00:02]} 39. Rd4 {[%clk 0:00:14]}  Qf5 {[%clk 0:00:03]} 40. Rde4 {[%clk 0:00:14]}  Qf6 {[%clk 0:00:03]} 41. Kf2 {[%clk 0:00:14]}  Qc3 {[%clk 0:00:03]} 42. R4e3 {[%clk 0:00:14]}  Qd4 {[%clk 0:00:03]} 43. g3 {[%clk 0:00:14]}  h5 {[%clk 0:00:02]} 44. Kg2 {[%clk 0:00:15]}  Qd1 {[%clk 0:00:02]} 45. Re7 {[%clk 0:00:15]}  Kg8 {[%clk 0:00:02]} 46. Rf2 {[%clk 0:00:13]}  Qd3 {[%clk 0:00:02]} 47. a4 {[%clk 0:00:12]}  Qb3 {[%clk 0:00:01]} 48. Re4 {[%clk 0:00:13]}  Qxa4 {[%clk 0:00:02]} 49. Rd2 {[%clk 0:00:13]}  Qb5 {[%clk 0:00:02]} 50. Rf4 {[%clk 0:00:12]}  Kg7 {[%clk 0:00:03]} 51. Re4 {[%clk 0:00:11]}  Qc6 {[%clk 0:00:03]} 52. Rde2 {[%clk 0:00:11]}  Qb5 {[%clk 0:00:03]} 53. Kf2 {[%clk 0:00:12]}  Qb6+ {[%clk 0:00:03]} 54. Kg2 {[%clk 0:00:12]}  Qb5 {[%clk 0:00:04]} 55. Rc2 {[%clk 0:00:12]}  Qd7 {[%clk 0:00:03]} 56. Rf4 {[%clk 0:00:11]}  Qb7 {[%clk 0:00:02]} 57. Rfc4 {[%clk 0:00:11]}  Qb5 {[%clk 0:00:02]} 58. Re4 {[%clk 0:00:11]}  Qb7 {[%clk 0:00:02]} 59. Rc5 {[%clk 0:00:12]}  Qd7 {[%clk 0:00:02]} 60. Rce5 {[%clk 0:00:11]}  Qd2+ {[%clk 0:00:02]} 61. Kf1 {[%clk 0:00:12]}  Qd1+ {[%clk 0:00:03]} 62. Kf2 {[%clk 0:00:12]}  Qd2+ {[%clk 0:00:03]} 63. Kf1 {[%clk 0:00:13]}  Qd1+ {[%clk 0:00:04]} 64. Kf2 {[%clk 0:00:13]}  Qd2+ {[%clk 0:00:04]} 65. Re2 {[%clk 0:00:13]}  Qxb4 {[%clk 0:00:04]} 66. R5e4 {[%clk 0:00:14]}  Qb6+ {[%clk 0:00:05]} 67. Kg2 {[%clk 0:00:14]}  a5 {[%clk 0:00:05]} 68. Ra2 {[%clk 0:00:14]}  Qb5 {[%clk 0:00:05]} 69. Rea4 {[%clk 0:00:14]}  Qd3 {[%clk 0:00:05]} 70. Rxa5 {[%clk 0:00:15]}  Qe3 {[%clk 0:00:06]} 71. R5a4 {[%clk 0:00:15]}  Qd3 {[%clk 0:00:06]} 72. Rf4 {[%clk 0:00:14]}  Qe3 {[%clk 0:00:05]} 73. Rc2 {[%clk 0:00:14]}  Qe5 {[%clk 0:00:03]} 74. Rfc4 {[%clk 0:00:14]}  Qe3 {[%clk 0:00:03]} 75. R4c3 {[%clk 0:00:15]}  Qe5 {[%clk 0:00:03]} 76. Kf2 {[%clk 0:00:16]}  Qd4+ {[%clk 0:00:04]} 77. Re3 {[%clk 0:00:16]}  Qd1 {[%clk 0:00:04]} 78. Rce2 {[%clk 0:00:16]}  Qh1 {[%clk 0:00:04]} 79. f4 {[%clk 0:00:16]}  Qh2+ {[%clk 0:00:04]} 80. Ke1 {[%clk 0:00:17]}  Qg1+ {[%clk 0:00:04]} 81. Kd2 {[%clk 0:00:18]}  Qa1 {[%clk 0:00:05]} 82. Rd3 {[%clk 0:00:19]}  Qb2+ {[%clk 0:00:05]} 83. Ke3 {[%clk 0:00:19]}  Qb6+ {[%clk 0:00:06]} 84. Kf3 {[%clk 0:00:19]}  Qc6+ {[%clk 0:00:07]} 85. Kf2 {[%clk 0:00:19]}  Qh1 {[%clk 0:00:07]} 86. Rf3 {[%clk 0:00:19]}  Qh2+ {[%clk 0:00:07]} 87. Ke3 {[%clk 0:00:19]}  Qg1+ {[%clk 0:00:08]} 88. Kd2 {[%clk 0:00:19]}  Qd4+ {[%clk 0:00:08]} 89. Rd3 {[%clk 0:00:20]}  Qb4+ {[%clk 0:00:09]} 90. Ke3 {[%clk 0:00:20]}  Qc5+ {[%clk 0:00:09]} 91. Kf3 {[%clk 0:00:19]}  Qc6+ {[%clk 0:00:10]} 92. Kf2 {[%clk 0:00:20]}  Qh1 {[%clk 0:00:10]} 93. Rde3 {[%clk 0:00:18]}  Qh2+ {[%clk 0:00:10]} 94. Ke1 {[%clk 0:00:18]}  Qg1+ {[%clk 0:00:10]} 95. Kd2 {[%clk 0:00:19]}  Qa1 {[%clk 0:00:11]} 96. Rd3 {[%clk 0:00:18]}  Qb2+ {[%clk 0:00:11]} 97. Ke1 {[%clk 0:00:18]}  Qc1+ {[%clk 0:00:10]} 98. Kf2 {[%clk 0:00:19]}  Qh1 {[%clk 0:00:11]} 1/2-1/2


[Site "https://www.chess.com"]

[Event "Titled Tuesday Blitz February 22 Early 2022"]
[White "Glavina, Pablo"]
[Black "Mirzanurov, Bulat"]
[WhiteFideId "100234"]
[BlackFideId "4184521"]
[WhiteElo "2369"]
[BlackElo "2116"]
[Result "1/2-1/2"]
[Round "02"]
[TimeControl "180+1"]
[Date "2022.02.22"]
[WhiteClock "0:00:20"]
[BlackClock "0:00:08"]

1. e4 {[%clk 0:03:00]}  c5 {[%clk 0:02:59]} 2. Nf3 {[%clk 0:02:58]}  d6 {[%clk 0:02:57]} 3. d4 {[%clk 0:02:58]}  cxd4 {[%clk 0:02:57]} 4. Nxd4 {[%clk 0:02:59]}  Nf6 {[%clk 0:02:57]} 5. Nc3 {[%clk 0:02:56]}  a6 {[%clk 0:02:57]} 6. Bc4 {[%clk 0:02:55]}  e6 {[%clk 0:02:48]} 7. a4 {[%clk 0:02:55]}  Nbd7 {[%clk 0:02:47]} 8. O-O {[%clk 0:02:51]}  Nc5 {[%clk 0:02:42]} 9. f3 {[%clk 0:02:34]}  Qc7 {[%clk 0:02:26]} 10. Ba2 {[%clk 0:02:31]}  Be7 {[%clk 0:02:10]} 11. Bd2 {[%clk 0:02:18]}  O-O {[%clk 0:02:05]} 12. b4 {[%clk 0:02:18]}  Ncd7 {[%clk 0:02:03]} 13. Bxe6 {[%clk 0:02:17]}  fxe6 {[%clk 0:01:17]} 14. Nxe6 {[%clk 0:02:18]}  Qb6+ {[%clk 0:01:17]} 15. Kh1 {[%clk 0:02:12]}  Rf7 {[%clk 0:01:00]} 16. Nd5 {[%clk 0:02:06]}  Nxd5 {[%clk 0:00:58]} 17. exd5 {[%clk 0:02:03]}  Ne5 {[%clk 0:00:19]} 18. a5 {[%clk 0:01:49]}  Qa7 {[%clk 0:00:18]} 19. Qe2 {[%clk 0:01:38]}  Bxe6 {[%clk 0:00:17]} 20. dxe6 {[%clk 0:01:33]}  Rf6 {[%clk 0:00:16]} 21. f4 {[%clk 0:01:29]}  Nc6 {[%clk 0:00:11]} 22. Bc3 {[%clk 0:01:26]}  Nd4 {[%clk 0:00:10]} 23. Qe4 {[%clk 0:01:21]}  Rxe6 {[%clk 0:00:06]} 24. Qxd4 {[%clk 0:00:56]}  Qxd4 {[%clk 0:00:05]} 25. Bxd4 {[%clk 0:00:57]}  Rc8 {[%clk 0:00:06]} 26. c3 {[%clk 0:00:57]}  d5 {[%clk 0:00:06]} 27. Rfe1 {[%clk 0:00:57]}  Re4 {[%clk 0:00:05]} 28. Rxe4 {[%clk 0:00:55]}  dxe4 {[%clk 0:00:05]} 29. Re1 {[%clk 0:00:56]}  Bf6 {[%clk 0:00:06]} 30. Rxe4 {[%clk 0:00:33]}  Bxd4 {[%clk 0:00:05]} 31. Rxd4 {[%clk 0:00:34]}  Rxc3 {[%clk 0:00:05]} 32. h3 {[%clk 0:00:34]}  Rc7 {[%clk 0:00:02]} 33. g4 {[%clk 0:00:19]}  Kf7 {[%clk 0:00:02]} 34. Kg2 {[%clk 0:00:19]}  Ke7 {[%clk 0:00:02]} 35. Kf3 {[%clk 0:00:20]}  Kf7 {[%clk 0:00:02]} 36. Ke4 {[%clk 0:00:20]}  g6 {[%clk 0:00:03]} 37. h4 {[%clk 0:00:18]}  Re7+ {[%clk 0:00:04]} 38. Kf3 {[%clk 0:00:19]}  Rc7 {[%clk 0:00:03]} 39. g5 {[%clk 0:00:16]}  Ke6 {[%clk 0:00:03]} 40. Kg4 {[%clk 0:00:16]}  Rd7 {[%clk 0:00:01]} 41. Rxd7 {[%clk 0:00:15]}  Kxd7 {[%clk 0:00:02]} 42. f5 {[%clk 0:00:15]}  gxf5+ {[%clk 0:00:03]} 43. Kxf5 {[%clk 0:00:16]}  Kc6 {[%clk 0:00:03]} 44. Kf6 {[%clk 0:00:17]}  Kb5 {[%clk 0:00:04]} 45. Kg7 {[%clk 0:00:17]}  Kxb4 {[%clk 0:00:04]} 46. Kxh7 {[%clk 0:00:18]}  Kxa5 {[%clk 0:00:05]} 47. g6 {[%clk 0:00:19]}  b5 {[%clk 0:00:06]} 48. g7 {[%clk 0:00:20]}  b4 {[%clk 0:00:07]} 49. g8=Q {[%clk 0:00:20]}  b3 {[%clk 0:00:08]} 50. Qxb3 {[%clk 0:00:20]} 1/2-1/2


[Site "https://www.chess.com"]

[Event "Titled Tuesday Blitz February 22 Early 2022"]
[White "Golizadeh, Asghar"]
[Black "Marcinczyk, Monika"]
[WhiteFideId "12505269"]
[BlackFideId "1192051"]
[WhiteElo "2403"]
[BlackElo "1730"]
[Result "0-1"]
[Round "02"]
[TimeControl "180+1"]
[Date "2022.02.22"]
[WhiteClock "0:00:01"]
[BlackClock "0:00:24"]

1. e4 {[%clk 0:03:00]}  c6 {[%clk 0:02:47]} 2. d4 {[%clk 0:02:59]}  g6 {[%clk 0:02:46]} 3. Nf3 {[%clk 0:02:57]}  Bg7 {[%clk 0:02:46]} 4. Bd3 {[%clk 0:02:55]}  d5 {[%clk 0:02:47]} 5. exd5 {[%clk 0:02:53]}  cxd5 {[%clk 0:02:47]} 6. h4 {[%clk 0:02:52]}  Bg4 {[%clk 0:02:45]} 7. c3 {[%clk 0:02:51]}  Nc6 {[%clk 0:02:43]} 8. Nbd2 {[%clk 0:02:51]}  Nf6 {[%clk 0:02:43]} 9. Nf1 {[%clk 0:02:52]}  Qd7 {[%clk 0:02:37]} 10. Ne3 {[%clk 0:02:52]}  h5 {[%clk 0:02:35]} 11. Be2 {[%clk 0:02:45]}  O-O {[%clk 0:02:28]} 12. Nxg4 {[%clk 0:02:32]}  hxg4 {[%clk 0:02:27]} 13. Ne5 {[%clk 0:02:31]}  Nxe5 {[%clk 0:02:25]} 14. dxe5 {[%clk 0:02:31]}  Ne4 {[%clk 0:02:24]} 15. Bxg4 {[%clk 0:02:31]}  Qc6 {[%clk 0:02:18]} 16. Bf4 {[%clk 0:02:15]}  Qb6 {[%clk 0:02:13]} 17. Qe2 {[%clk 0:02:03]}  f5 {[%clk 0:01:44]} 18. Bf3 {[%clk 0:02:00]}  Rac8 {[%clk 0:01:35]} 19. h5 {[%clk 0:01:45]}  g5 {[%clk 0:01:33]} 20. Bxe4 {[%clk 0:01:46]}  fxe4 {[%clk 0:01:29]} 21. Bxg5 {[%clk 0:01:45]}  Bxe5 {[%clk 0:01:28]} 22. Bxe7 {[%clk 0:00:41]}  Rf7 {[%clk 0:01:21]} 23. Bg5 {[%clk 0:00:41]}  Rxc3 {[%clk 0:01:19]} 24. O-O {[%clk 0:00:33]}  Rg3 {[%clk 0:01:16]} 25. Be3 {[%clk 0:00:31]}  Rxg2+ {[%clk 0:00:57]} 26. Kxg2 {[%clk 0:00:27]}  Rg7+ {[%clk 0:00:58]} 27. Kh1 {[%clk 0:00:22]}  Qf6 {[%clk 0:00:34]} 28. f4 {[%clk 0:00:22]}  exf3 {[%clk 0:00:32]} 29. Qf2 {[%clk 0:00:04]}  Bg3 {[%clk 0:00:26]} 30. Qxf3 {[%clk 0:00:02]}  Qh4+ {[%clk 0:00:26]} 31. Kg2 {[%clk 0:00:01]}  Bf2+ {[%clk 0:00:24]} 0-1


[Site "https://www.chess.com"]

[Event "Titled Tuesday Blitz February 22 Early 2022"]
[White "Golsta, Madara"]
[Black "Assaubayeva, Bibisara"]
[WhiteFideId "11607386"]
[BlackFideId "13708694"]
[WhiteElo "1997"]
[BlackElo "2404"]
[Result "0-1"]
[Round "02"]
[TimeControl "180+1"]
[Date "2022.02.22"]
[WhiteClock "0:00:01"]
[BlackClock "0:00:35"]

1. e4 {[%clk 0:03:00]}  c5 {[%clk 0:02:59]} 2. Nf3 {[%clk 0:03:00]}  d6 {[%clk 0:02:57]} 3. d4 {[%clk 0:03:00]}  cxd4 {[%clk 0:02:57]} 4. Nxd4 {[%clk 0:03:01]}  Nf6 {[%clk 0:02:57]} 5. Nc3 {[%clk 0:03:01]}  a6 {[%clk 0:02:57]} 6. Bd3 {[%clk 0:02:57]}  e5 {[%clk 0:02:57]} 7. Nde2 {[%clk 0:02:57]}  Be7 {[%clk 0:02:55]} 8. O-O {[%clk 0:02:55]}  O-O {[%clk 0:02:54]} 9. Ng3 {[%clk 0:02:55]}  Be6 {[%clk 0:02:46]} 10. Nd5 {[%clk 0:02:53]}  Bxd5 {[%clk 0:02:43]} 11. exd5 {[%clk 0:02:53]}  g6 {[%clk 0:02:41]} 12. c4 {[%clk 0:02:51]}  Nbd7 {[%clk 0:02:37]} 13. Be3 {[%clk 0:02:40]}  Ne8 {[%clk 0:02:33]} 14. Rc1 {[%clk 0:02:32]}  f5 {[%clk 0:02:32]} 15. f4 {[%clk 0:02:32]}  Nef6 {[%clk 0:02:23]} 16. Be2 {[%clk 0:02:17]}  a5 {[%clk 0:02:01]} 17. Kh1 {[%clk 0:01:50]}  b6 {[%clk 0:02:00]} 18. a3 {[%clk 0:01:44]}  a4 {[%clk 0:01:56]} 19. Bd3 {[%clk 0:01:44]}  Ng4 {[%clk 0:01:47]} 20. Bg1 {[%clk 0:01:43]}  exf4 {[%clk 0:01:46]} 21. Ne2 {[%clk 0:01:37]}  Ne3 {[%clk 0:01:46]} 22. Bxe3 {[%clk 0:01:27]}  fxe3 {[%clk 0:01:47]} 23. Nd4 {[%clk 0:01:27]}  Nc5 {[%clk 0:01:47]} 24. Nc6 {[%clk 0:01:18]}  Qd7 {[%clk 0:01:41]} 25. Nd4 {[%clk 0:00:42]}  Bf6 {[%clk 0:01:07]} 26. Be2 {[%clk 0:00:27]}  Bxd4 {[%clk 0:01:06]} 27. Qxd4 {[%clk 0:00:28]}  Rae8 {[%clk 0:01:05]} 28. Qc3 {[%clk 0:00:19]}  f4 {[%clk 0:01:02]} 29. Bf3 {[%clk 0:00:18]}  Re5 {[%clk 0:00:55]} 30. Rfe1 {[%clk 0:00:16]}  Qf7 {[%clk 0:00:49]} 31. Rcd1 {[%clk 0:00:15]}  h5 {[%clk 0:00:46]} 32. Qb4 {[%clk 0:00:14]}  Rb8 {[%clk 0:00:43]} 33. Rd4 {[%clk 0:00:11]}  g5 {[%clk 0:00:41]} 34. Qb5 {[%clk 0:00:03]}  g4 {[%clk 0:00:39]} 35. Bd1 {[%clk 0:00:03]}  f3 {[%clk 0:00:34]} 36. gxf3 {[%clk 0:00:01]}  gxf3 {[%clk 0:00:35]} 0-1


[Site "https://www.chess.com"]

[Event "Titled Tuesday Blitz February 22 Early 2022"]
[White "Golubka, Petro"]
[Black "Ardila, Oscar Humberto"]
[WhiteFideId "14114224"]
[BlackFideId "4404742"]
[WhiteElo "2392"]
[BlackElo "1898"]
[Result "1-0"]
[Round "02"]
[TimeControl "180+1"]
[Date "2022.02.22"]
[WhiteClock "0:01:26"]
[BlackClock "0:00:56"]

1. e4 {[%clk 0:03:00]}  e5 {[%clk 0:02:59]} 2. Nf3 {[%clk 0:02:57]}  Nc6 {[%clk 0:03:00]} 3. Bc4 {[%clk 0:02:56]}  Nf6 {[%clk 0:03:00]} 4. d3 {[%clk 0:02:56]}  Bc5 {[%clk 0:02:59]} 5. a4 {[%clk 0:02:56]}  d6 {[%clk 0:02:55]} 6. Nc3 {[%clk 0:02:56]}  O-O {[%clk 0:02:54]} 7. h3 {[%clk 0:02:57]}  h6 {[%clk 0:02:53]} 8. g4 {[%clk 0:02:56]}  Bb4 {[%clk 0:02:50]} 9. g5 {[%clk 0:02:55]}  hxg5 {[%clk 0:02:46]} 10. Bxg5 {[%clk 0:02:56]}  Be6 {[%clk 0:02:45]} 11. Nd2 {[%clk 0:02:50]}  Bxc3 {[%clk 0:02:44]} 12. bxc3 {[%clk 0:02:51]}  d5 {[%clk 0:02:43]} 13. Bxf6 {[%clk 0:02:48]}  Qxf6 {[%clk 0:02:23]} 14. exd5 {[%clk 0:02:48]}  Bd7 {[%clk 0:02:10]} 15. Ne4 {[%clk 0:02:40]}  Qf4 {[%clk 0:02:08]} 16. dxc6 {[%clk 0:02:39]}  Bxc6 {[%clk 0:02:08]} 17. Qg4 {[%clk 0:02:37]}  Qh6 {[%clk 0:02:03]} 18. h4 {[%clk 0:02:28]}  Kh8 {[%clk 0:02:03]} 19. Qg5 {[%clk 0:02:28]}  Qh7 {[%clk 0:02:01]} 20. f3 {[%clk 0:02:16]}  f5 {[%clk 0:01:58]} 21. Nd2 {[%clk 0:02:13]}  e4 {[%clk 0:01:56]} 22. O-O-O {[%clk 0:02:11]}  exf3 {[%clk 0:01:53]} 23. Rdf1 {[%clk 0:02:09]}  Rae8 {[%clk 0:01:30]} 24. Nxf3 {[%clk 0:02:05]}  f4 {[%clk 0:01:26]} 25. Bb5 {[%clk 0:01:57]}  Rf5 {[%clk 0:01:21]} 26. Bxc6 {[%clk 0:01:54]}  bxc6 {[%clk 0:01:17]} 27. Qg4 {[%clk 0:01:47]}  Ref8 {[%clk 0:01:07]} 28. h5 {[%clk 0:01:43]}  Qh6 {[%clk 0:01:06]} 29. Re1 {[%clk 0:01:30]}  Qd6 {[%clk 0:01:03]} 30. Nh4 {[%clk 0:01:28]}  Qa3+ {[%clk 0:01:02]} 31. Kd2 {[%clk 0:01:28]}  R5f6 {[%clk 0:00:55]} 32. Ng6+ {[%clk 0:01:28]}  Kg8 {[%clk 0:00:56]} 33. Nxf8 {[%clk 0:01:27]}  Kxf8 {[%clk 0:00:56]} 34. h6 {[%clk 0:01:26]} 1-0


[Site "https://www.chess.com"]

[Event "Titled Tuesday Blitz February 22 Early 2022"]
[White "Grandelius, Nils"]
[Black "Dev, Shah"]
[WhiteFideId "1710400"]
[BlackFideId "35019058"]
[WhiteElo "2617"]
[BlackElo "2098"]
[Result "1-0"]
[Round "02"]
[TimeControl "180+1"]
[Date "2022.02.22"]
[WhiteClock "0:00:09"]
[BlackClock "0:00:00"]

1. Nf3 {[%clk 0:03:00]}  Nf6 {[%clk 0:02:58]} 2. g3 {[%clk 0:03:00]}  c5 {[%clk 0:02:58]} 3. b3 {[%clk 0:02:56]}  Nc6 {[%clk 0:02:57]} 4. Bb2 {[%clk 0:02:57]}  d5 {[%clk 0:02:52]} 5. d4 {[%clk 0:02:53]}  cxd4 {[%clk 0:02:52]} 6. Nxd4 {[%clk 0:02:54]}  e6 {[%clk 0:02:48]} 7. Bg2 {[%clk 0:02:53]}  Bd6 {[%clk 0:02:46]} 8. O-O {[%clk 0:02:51]}  O-O {[%clk 0:02:46]} 9. Nd2 {[%clk 0:02:29]}  Nxd4 {[%clk 0:02:44]} 10. Bxd4 {[%clk 0:02:29]}  e5 {[%clk 0:02:43]} 11. Bb2 {[%clk 0:02:30]}  Qe7 {[%clk 0:02:38]} 12. a3 {[%clk 0:02:11]}  Be6 {[%clk 0:02:27]} 13. c4 {[%clk 0:02:02]}  dxc4 {[%clk 0:02:25]} 14. Nxc4 {[%clk 0:02:02]}  Bxc4 {[%clk 0:02:23]} 15. bxc4 {[%clk 0:02:03]}  Rac8 {[%clk 0:02:23]} 16. Qb3 {[%clk 0:01:59]}  Rc7 {[%clk 0:02:16]} 17. Rac1 {[%clk 0:01:45]}  Rfc8 {[%clk 0:02:00]} 18. Bh3 {[%clk 0:01:43]}  Rd8 {[%clk 0:01:58]} 19. Rfd1 {[%clk 0:01:43]}  Ne4 {[%clk 0:01:49]} 20. Bg2 {[%clk 0:01:34]}  Nc5 {[%clk 0:01:49]} 21. Qc2 {[%clk 0:01:27]}  b6 {[%clk 0:01:42]} 22. Rd5 {[%clk 0:01:20]}  Ne6 {[%clk 0:01:38]} 23. Rcd1 {[%clk 0:01:11]}  Rcd7 {[%clk 0:01:36]} 24. Bh3 {[%clk 0:01:00]}  Bc5 {[%clk 0:01:24]} 25. Bxe5 {[%clk 0:00:55]}  Bxa3 {[%clk 0:01:11]} 26. Ba1 {[%clk 0:00:36]}  Rxd5 {[%clk 0:01:02]} 27. cxd5 {[%clk 0:00:37]}  Nf8 {[%clk 0:01:00]} 28. e4 {[%clk 0:00:25]}  f6 {[%clk 0:00:55]} 29. f4 {[%clk 0:00:21]}  Bd6 {[%clk 0:00:51]} 30. Re1 {[%clk 0:00:18]}  Ng6 {[%clk 0:00:51]} 31. Bf5 {[%clk 0:00:18]}  b5 {[%clk 0:00:44]} 32. Qb3 {[%clk 0:00:17]}  a6 {[%clk 0:00:18]} 33. e5 {[%clk 0:00:17]}  fxe5 {[%clk 0:00:17]} 34. fxe5 {[%clk 0:00:18]}  Bc5+ {[%clk 0:00:17]} 35. Kg2 {[%clk 0:00:17]}  Qg5 {[%clk 0:00:17]} 36. Be6+ {[%clk 0:00:14]}  Kh8 {[%clk 0:00:17]} 37. Kh1 {[%clk 0:00:14]}  Qd2 {[%clk 0:00:09]} 38. Qc3 {[%clk 0:00:12]}  Qf2 {[%clk 0:00:07]} 39. Bh3 {[%clk 0:00:09]}  Rxd5 {[%clk 0:00:02]} 40. Rf1 {[%clk 0:00:09]}  Qd2 {[%clk 0:00:01]} 41. Qf3 {[%clk 0:00:09]}  h6 {[%clk 0:00:00]} 42. e6 {[%clk 0:00:09]} 1-0


[Site "https://www.chess.com"]

[Event "Titled Tuesday Blitz February 22 Early 2022"]
[White "Grischuk, Alexander"]
[Black "Colas, Joshua"]
[WhiteFideId "4126025"]
[BlackFideId "2044447"]
[WhiteElo "2762"]
[BlackElo "2347"]
[Result "1-0"]
[Round "02"]
[TimeControl "180+1"]
[Date "2022.02.22"]
[WhiteClock "0:01:04"]
[BlackClock "0:00:10"]

1. e4 {[%clk 0:03:00]}  c6 {[%clk 0:03:00]} 2. d4 {[%clk 0:03:01]}  d5 {[%clk 0:03:00]} 3. e5 {[%clk 0:03:01]}  Bf5 {[%clk 0:03:00]} 4. Nf3 {[%clk 0:03:02]}  e6 {[%clk 0:03:00]} 5. Be2 {[%clk 0:03:02]}  Nd7 {[%clk 0:03:00]} 6. O-O {[%clk 0:03:02]}  Ne7 {[%clk 0:02:58]} 7. c3 {[%clk 0:03:02]}  h6 {[%clk 0:02:53]} 8. Nbd2 {[%clk 0:03:00]}  a5 {[%clk 0:02:53]} 9. a4 {[%clk 0:02:58]}  Bh7 {[%clk 0:02:50]} 10. Ne1 {[%clk 0:02:49]}  c5 {[%clk 0:02:44]} 11. Bd3 {[%clk 0:02:47]}  Bxd3 {[%clk 0:02:42]} 12. Nxd3 {[%clk 0:02:48]}  cxd4 {[%clk 0:02:38]} 13. cxd4 {[%clk 0:02:47]}  Nf5 {[%clk 0:02:36]} 14. Nf3 {[%clk 0:02:39]}  Qb6 {[%clk 0:02:36]} 15. Kh1 {[%clk 0:02:33]}  g5 {[%clk 0:02:13]} 16. h3 {[%clk 0:02:10]}  Rc8 {[%clk 0:02:09]} 17. Bd2 {[%clk 0:02:07]}  Be7 {[%clk 0:01:48]} 18. Bc3 {[%clk 0:01:35]}  Nb8 {[%clk 0:01:42]} 19. g4 {[%clk 0:01:30]}  Ng7 {[%clk 0:01:40]} 20. Kg2 {[%clk 0:01:29]}  Nc6 {[%clk 0:01:37]} 21. Qd2 {[%clk 0:01:26]}  O-O {[%clk 0:01:29]} 22. Rae1 {[%clk 0:01:23]}  f6 {[%clk 0:01:19]} 23. exf6 {[%clk 0:01:23]}  Bxf6 {[%clk 0:01:14]} 24. Nc5 {[%clk 0:01:19]}  Nxd4 {[%clk 0:00:53]} 25. Bxd4 {[%clk 0:01:19]}  Bxd4 {[%clk 0:00:51]} 26. Nd7 {[%clk 0:01:19]}  Qxb2 {[%clk 0:00:24]} 27. Qxd4 {[%clk 0:01:16]}  Qxd4 {[%clk 0:00:23]} 28. Nxd4 {[%clk 0:01:16]}  Rf7 {[%clk 0:00:17]} 29. Ne5 {[%clk 0:01:15]}  Rf4 {[%clk 0:00:16]} 30. Ng6 {[%clk 0:01:08]}  Rf7 {[%clk 0:00:11]} 31. Nxe6 {[%clk 0:01:05]}  Nxe6 {[%clk 0:00:11]} 32. Rxe6 {[%clk 0:01:06]}  Kg7 {[%clk 0:00:11]} 33. Ne7 {[%clk 0:01:05]}  Rc4 {[%clk 0:00:09]} 34. Nf5+ {[%clk 0:01:05]}  Kf8 {[%clk 0:00:10]} 35. Rfe1 {[%clk 0:01:04]} 1-0


[Site "https://www.chess.com"]